[Event "23rd OIBM 2019"]
[Site "Gmund am Tegernsee"]
[Date "2019.10.27"]
[Round "2.24"]
[White "Loiseau, Quentin"]
[Black "Gohla, Ulf"]
[Result "1-0"]
[ECO "C72"]
[WhiteElo "2471"]
[BlackElo "2217"]
[Annotator "ChessBase"]
[PlyCount "79"]
[EventDate "2019.10.17"]
[EventType "swiss"]
[EventCountry "GER"]
[SourceTitle "playchess.com"]
[Source "ChessBase"]
[SourceQuality "1"]
[TimeControl "40/5400+30:1800+30"]

1. e4 {[%emt 0:03:14]} e5 {[%emt 0:00:00]} 2. Nf3 {[%emt 0:00:24]} Nc6 {[%emt 0:00:00]} 3. Bb5 {[%emt 0:00:37]} a6 {[%emt 0:00:00]} 4. Ba4 {[%emt 0:00:05]} d6 {[%emt 0:00:19]} 5. O-O {[%emt 0:00:28]} Be7 {[%emt 0:04:50]} 6. d4 {[%emt 0:01:52]} b5 {[%emt 0:01:53]} 7. Bb3 {[%emt 0:00:37]} Nxd4 {[%emt 0:00:20]} 8. Nxd4 {[%emt 0:00:26]} exd4 {[%emt 0:00:03]} 9. Qh5 {[%emt 0:09:28]} g6 {[%emt 0:01:24]} 10. Qf3 {[%emt 0:00:14]} Be6 {[%emt 0:03:35]} 11. c3 {[%emt 0:01:06]} c5 {[%emt 0:13:03]} 12. cxd4 {[%emt 0:02:20]} c4 {[%emt 0:00:39]} 13. d5 {[%emt 0:01:08]} Bd7 {[%emt 0:01:33]} 14. Bc2 {[%emt 0:00:06]} Bg5 {[%emt 0:07:20]} 15. Nd2 {[%emt 0:14:12]} Nh6 {[%emt 0:14:58]} 16. Qg3 {[%emt 0:03:43]} O-O {[%emt 0:15:39]} 17. Qxd6 {[%emt 0:02:03]} Be7 {[%emt 0:00:29]} 18. Qf4 {[%emt 0:04:36]} Bg5 {[%emt 0:00:23]} 19. Qg3 {[%emt 0:00:25]} f5 {[%emt 0:05:58]} 20. Nf3 {[%emt 0:08:36]} Bxc1 {[%emt 0:02:03]} 21. Raxc1 {[%emt 0:00:28]} fxe4 {[%emt 0:00:20]} 22. Bxe4 {[%emt 0:00:30]} Bf5 {[%emt 0:03:27]} 23. Qf4 {[%emt 0:02:04]} Bxe4 {[%emt 0:01:37]} 24. Qxe4 {[%emt 0:00:09]} Re8 {[%emt 0:01:25]} 25. Qf4 {[%emt 0:01:41]} Nf5 {[%emt 0:00:40]} 26. Rfd1 {[%emt 0:01:04]} Re2 {[%emt 0:01:37]} 27. d6 {[%emt 0:05:50]} Qb6 {[%emt 0:02:26]} 28. Ne5 {[%emt 0:04:51]} Rd8 {[%emt 0:03:56]} 29. Nxc4 {[%emt 0:02:19]} Qc5 {[%emt 0:04:17]} 30. Qf3 {[%emt 0:04:45]} Re6 {[%emt 0:00:52]} 31. Ne3 {[%emt 0:01:30]} Qe5 {[%emt 0:00:58]} 32. Ng4 {[%emt 0:02:17]} Qxb2 {[%emt 0:00:58]} 33. d7 {[%emt 0:05:22]} Qb4 {[%emt 0:01:24]} 34. Qd5 {[%emt 0:01:01]} Qd6 {[%emt 0:00:21]} 35. Qb3 {[%emt 0:05:33]} Qe7 {[%emt 0:02:02]} 36. Rc8 {[%emt 0:00:42]} Kf7 {[%emt 0:00:25]} 37. Rxd8 {[%emt 0:03:18]} Qxd8 {[%emt 0:00:15]} 38. Qd5 {[%emt 0:02:02]} Ne7 {[%emt 0:01:48]} 39. Nh6+ {[%emt 0:00:20]} Kf6 {[%emt 0:00:22]} 40. Qd4+ {[%emt 0:00:06]} 1-0

[Event "23rd OIBM 2019"]
[Site "Gmund am Tegernsee"]
[Date "2019.10.27"]
[Round "2.26"]
[White "Parvanyan, Ashot"]
[Black "Yi, Danny"]
[Result "1-0"]
[ECO "A05"]
[WhiteElo "2448"]
[BlackElo "2211"]
[Annotator "NA"]
[PlyCount "69"]
[EventDate "2019.10.17"]
[EventType "swiss"]
[EventCountry "GER"]
[SourceTitle "playchess.com"]
[Source "ChessBase"]
[SourceQuality "1"]
[TimeControl "40/5400+30:1800+30"]

1. Nf3 {[%emt 0:00:00]} Nf6 {[%emt 0:00:00]} 2. c4 {[%emt 0:00:00]} g6 {[%emt 0:00:00]} 3. Nc3 {[%emt 0:00:00]} d5 {[%emt 0:02:14]} 4. cxd5 {[%emt 0:00:08]} Nxd5 {[%emt 0:00:20]} 5. h4 {[%emt 0:00:13]} h5 {[%emt 0:01:18]} 6. e4 {[%emt 0:01:30]} Nxc3 {[%emt 0:03:11]} 7. bxc3 Bg7 8. Qb3 {[%emt 0:05:21]} O-O {[%emt 0:04:17]} 9. Ba3 {[%emt 0:07:41]} b6 {[%emt 0:05:15]} 10. Ng5 {[%emt 0:03:20]} c5 {[%emt 0:06:34]} 11. d4 {[%emt 0:10:37]} Nc6 {[%emt 0:19:30]} 12. d5 {[%emt 0:11:43]} Na5 {[%emt 0:02:25]} 13. Qc2 {[%emt 0:00:07]} Qc7 {[%emt 0:09:36]} 14. Bd3 {[%emt 0:07:48]} Qe5 {[%emt 0:05:35]} 15. Rc1 {[%emt 0:01:50]} e6 {[%emt 0:03:52]} 16. O-O {[%emt 0:05:10]} exd5 {[%emt 0:05:25]} 17. exd5 {[%emt 0:00:30]} Qf4 {[%emt 0:03:26]} 18. g3 {[%emt 0:03:08]} Qd6 {[%emt 0:00:49]} 19. Rce1 {[%emt 0:03:05]} Bg4 {[%emt 0:03:01]} 20. c4 {[%emt 0:04:44]} Bd4 {[%emt 0:05:09]} 21. Kh2 {[%emt 0:02:38]} Qf6 {[%emt 0:00:59]} 22. Bc1 {[%emt 0:02:35]} Rae8 {[%emt 0:02:25]} 23. Bf4 {[%emt 0:00:24]} Nb7 {[%emt 0:00:50]} 24. Rxe8 {[%emt 0:05:18]} Rxe8 {[%emt 0:00:01]} 25. Qa4 {[%emt 0:00:08]} Ra8 {[%emt 0:05:04]} 26. Re1 {[%emt 0:06:07]} Nd6 {[%emt 0:02:42]} 27. f3 {[%emt 0:06:10]} b5 {[%emt 0:06:51]} 28. Qa6 {[%emt 0:03:57]} Bf5 {[%emt 0:00:43]} 29. Bxf5 {[%emt 0:07:19]} Nxf5 {[%emt 0:00:08]} 30. Qxb5 {[%emt 0:01:03]} Bc3 {[%emt 0:02:10]} 31. Re8+ {[%emt 0:00:42]} Rxe8 {[%emt 0:00:01]} 32. Qxe8+ {[%emt 0:00:04]} Kg7 {[%emt 0:00:10]} 33. d6 {[%emt 0:00:57]} Nh6 {[%emt 0:01:34]} 34. d7 {[%emt 0:01:13]} Qd4 {[%emt 0:00:39]} 35. Be5+ {[%emt 0:00:21]} 1-0

[Event "23rd OIBM 2019"]
[Site "Gmund am Tegernsee"]
[Date "2019.10.27"]
[Round "2.27"]
[White "Delitzsch, Juergen"]
[Black "Hoffmann, Michael"]
[Result "1/2-1/2"]
[ECO "D45"]
[WhiteElo "2197"]
[BlackElo "2445"]
[Annotator "NA"]
[PlyCount "37"]
[EventDate "2019.10.17"]
[EventType "swiss"]
[EventCountry "GER"]
[SourceTitle "playchess.com"]
[Source "ChessBase"]
[SourceQuality "1"]
[TimeControl "40/5400+30:1800+30"]

1. Nf3 {[%emt 0:00:00]} Nf6 {[%emt 0:03:22]} 2. c4 {[%emt 0:00:29]} e6 {[%emt 0:01:20]} 3. Nc3 {[%emt 0:02:03]} d5 {[%emt 0:01:07]} 4. d4 {[%emt 0:00:20]} c6 {[%emt 0:02:27]} 5. e3 {[%emt 0:00:20]} Nbd7 {[%emt 0:00:34]} 6. Qc2 {[%emt 0:00:55]} b6 {[%emt 0:02:22]} 7. Be2 {[%emt 0:06:25]} Bb7 {[%emt 0:01:13]} 8. O-O {[%emt 0:02:56]} Be7 {[%emt 0:11:40]} 9. Rd1 {[%emt 0:11:06]} O-O {[%emt 0:02:57]} 10. b3 {[%emt 0:02:25]} Qc7 {[%emt 0:01:50]} 11. Bb2 {[%emt 0:00:45]} Rad8 {[%emt 0:02:37]} 12. Rac1 {[%emt 0:03:26]} Qb8 {[%emt 0:02:20]} 13. cxd5 {[%emt 0:06:45]} cxd5 {[%emt 0:02:27]} 14. Qb1 {[%emt 0:01:26]} a6 {[%emt 0:03:27]} 15. Bd3 {[%emt 0:05:09]} h6 {[%emt 0:01:05]} 16. Na4 {[%emt 0:09:31]} Bd6 {[%emt 0:03:08]} 17. h3 {[%emt 0:00:35]} Rc8 {[%emt 0:02:47]} 18. Qa1 {[%emt 0:03:29]} Rxc1 {[%emt 0:04:02]} 19. Rxc1 {[%emt 0:00:20]} 1/2-1/2

[Event "23rd OIBM 2019"]
[Site "Gmund am Tegernsee"]
[Date "2019.10.27"]
[Round "2.28"]
[White "Womacka, Mathias"]
[Black "Goldbeck, Lars"]
[Result "1-0"]
[ECO "B15"]
[WhiteElo "2436"]
[BlackElo "2203"]
[Annotator "RC"]
[PlyCount "131"]
[EventDate "2019.10.17"]
[EventType "swiss"]
[EventCountry "GER"]
[SourceTitle "playchess.com"]
[Source "ChessBase"]
[SourceQuality "1"]
[TimeControl "40/5400+30:1800+30"]

1. e4 {[%emt 0:00:00]} c6 {[%emt 0:00:00]} 2. d4 {[%emt 0:00:00]} d5 {[%emt 0:00:00]} 3. Nd2 {[%emt 0:00:00]} dxe4 {[%emt 0:00:00]} 4. Nxe4 {[%emt 0:00:00]} Nf6 {[%emt 0:00:00]} 5. Nxf6+ {[%emt 0:00:11]} exf6 {[%emt 0:00:00]} 6. Bc4 {[%emt 0:00:45]} Qe7+ {[%emt 0:01:17]} 7. Qe2 {[%emt 0:02:54]} Bg4 {[%emt 0:02:37]} 8. f3 {[%emt 0:10:04]} Be6 {[%emt 0:10:51]} 9. Bxe6 {[%emt 0:24:32]} Qxe6 {[%emt 0:02:53]} 10. Nh3 {[%emt 0:01:30]} Na6 {[%emt 0:08:41]} 11. Nf4 {[%emt 0:00:28]} Qxe2+ {[%emt 0:00:05]} 12. Kxe2 {[%emt 0:00:03]} O-O-O {[%emt 0:02:34]} 13. c3 {[%emt 0:09:00]} Bd6 {[%emt 0:13:09]} 14. Nh5 {[%emt 0:08:49]} c5 {[%emt 0:06:05]} 15. Be3 {[%emt 0:04:02]} cxd4 {[%emt 0:04:01]} 16. Bxd4 {[%emt 0:01:29]} Bc5 {[%emt 0:02:05]} 17. Rad1 {[%emt 0:08:01]} Bxd4 {[%emt 0:02:44]} 18. Rxd4 {[%emt 0:00:34]} Rxd4 {[%emt 0:00:36]} 19. cxd4 {[%emt 0:00:04]} Rd8 {[%emt 0:05:21]} 20. g4 {[%emt 0:08:23]} f5 {[%emt 0:14:05]} 21. gxf5 {[%emt 0:00:10]} Rxd4 {[%emt 0:00:28]} 22. Nxg7 {[%emt 0:00:30]} Rh4 {[%emt 0:01:16]} 23. Kf2 {[%emt 0:01:06]} Nb4 {[%emt 0:05:53]} 24. Kg3 {[%emt 0:01:00]} Rd4 {[%emt 0:03:07]} 25. a3 {[%emt 0:01:16]} Nd5 {[%emt 0:01:34]} 26. Re1 {[%emt 0:00:40]} Kd7 {[%emt 0:02:33]} 27. Nh5 {[%emt 0:03:06]} Ne7 {[%emt 0:02:37]} 28. Nf6+ {[%emt 0:02:24]} Kd6 {[%emt 0:03:18]} 29. Ne4+ {[%emt 0:00:10]} Kc6 {[%emt 0:00:33]} 30. f6 {[%emt 0:03:15]} Nd5 {[%emt 0:01:06]} 31. Rc1+ {[%emt 0:02:40]} Kd7 {[%emt 0:01:13]} 32. Nc5+ {[%emt 0:00:13]} Kd6 {[%emt 0:00:47]} 33. Nxb7+ {[%emt 0:00:13]} Ke5 {[%emt 0:00:19]} 34. Na5 {[%emt 0:04:50]} Kxf6 {[%emt 0:00:50]} 35. Rc6+ {[%emt 0:00:27]} Kf5 {[%emt 0:01:23]} 36. Rd6 {[%emt 0:00:18]} Nf4 {[%emt 0:01:07]} 37. Rxd4 {[%emt 0:00:24]} Ne2+ {[%emt 0:00:01]} 38. Kf2 {[%emt 0:00:10]} Nxd4 {[%emt 0:00:01]} 39. Ke3 {[%emt 0:01:10]} Ke5 {[%emt 0:01:07]} 40. Nc4+ {[%emt 0:02:13]} Kd5 {[%emt 0:00:05]} 41. Nd2 {[%emt 0:30:07]} Ne6 {[%emt 0:32:29]} 42. b3 {[%emt 0:00:00]} f5 {[%emt 0:00:00]} 43. b4 {[%emt 0:00:00]} Nd4 {[%emt 0:00:00]} 44. Kf4 {[%emt 0:00:00]} h6 {[%emt 0:00:00]} 45. a4 {[%emt 0:00:00]} Ke6 {[%emt 0:00:00]} 46. a5 {[%emt 0:00:00]} Nc6 {[%emt 0:00:00]} 47. Nb3 {[%emt 0:00:00]} Nxb4 {[%emt 0:00:00]} 48. Nd4+ {[%emt 0:00:00]} Kf6 {[%emt 0:00:00]} 49. Nxf5 {[%emt 0:00:00]} Nc6 {[%emt 0:00:00]} 50. Nxh6 {[%emt 0:00:00]} Nxa5 {[%emt 0:00:00]} 51. Ng4+ {[%emt 0:00:00]} Kg6 {[%emt 0:00:00]} 52. Ne5+ {[%emt 0:00:00]} Kf6 {[%emt 0:00:00]} 53. Nd7+ {[%emt 0:00:00]} Kg6 {[%emt 0:00:00]} 54. Ke4 {[%emt 0:00:00]} Nb7 {[%emt 0:00:00]} 55. f4 {[%emt 0:00:00]} Nd6+ {[%emt 0:00:00]} 56. Ke5 {[%emt 0:01:03]} Nf7+ {[%emt 0:00:00]} 57. Ke6 {[%emt 0:00:29]} Nd8+ {[%emt 0:00:00]} 58. Ke7 {[%emt 0:00:13]} Nc6+ {[%emt 0:00:00]} 59. Kd6 {[%emt 0:00:10]} Nd4 {[%emt 0:00:00]} 60. Kd5 {[%emt 0:00:23]} Nf3 {[%emt 0:00:00]} 61. Ne5+ {[%emt 0:01:23]} Nxe5 {[%emt 0:00:00]} 62. Kxe5 {[%emt 0:01:51]} Kf7 {[%emt 0:00:00]} 63. h4 {[%emt 0:00:11]} a5 {[%emt 0:00:00]} 64. Kd5 {[%emt 0:00:18]} Kg6 {[%emt 0:00:00]} 65. Kc5 {[%emt 0:00:05]} Kh5 {[%emt 0:00:00]} 66. f5 {[%emt 0:00:05]} 1-0

[Event "23rd OIBM 2019"]
[Site "Gmund am Tegernsee"]
[Date "2019.10.27"]
[Round "2.30"]
[White "Smith, Bryan"]
[Black "Grigorieva, Yulia"]
[Result "1-0"]
[ECO "C37"]
[WhiteElo "2430"]
[BlackElo "2184"]
[Annotator "NA"]
[PlyCount "57"]
[EventDate "2019.10.17"]
[EventType "swiss"]
[EventCountry "GER"]
[SourceTitle "playchess.com"]
[Source "ChessBase"]
[SourceQuality "1"]
[TimeControl "40/5400+30:1800+30"]

1. e4 {[%emt 0:01:45]} e5 {[%emt 0:00:00]} 2. f4 {[%emt 0:00:21]} exf4 {[%emt 0:01:34]} 3. Nf3 {[%emt 0:00:11]} g5 {[%emt 0:02:03]} 4. Nc3 {[%emt 0:00:15]} d6 {[%emt 0:01:29]} 5. d4 {[%emt 0:06:19]} Bg7 {[%emt 0:01:51]} 6. g3 {[%emt 0:00:41]} g4 {[%emt 0:05:54]} 7. Nh4 {[%emt 0:01:05]} f3 {[%emt 0:03:04]} 8. Be3 {[%emt 0:02:29]} Bf6 {[%emt 0:04:43]} 9. Qd2 {[%emt 0:11:20]} Nc6 {[%emt 0:09:43]} 10. Nd5 {[%emt 0:10:30]} Bxh4 {[%emt 0:04:55]} 11. gxh4 {[%emt 0:00:06]} Be6 {[%emt 0:02:46]} 12. O-O-O {[%emt 0:04:03]} Nce7 {[%emt 0:04:00]} 13. Nf4 {[%emt 0:05:22]} d5 {[%emt 0:07:00]} 14. exd5 {[%emt 0:11:15]} Bxd5 {[%emt 0:04:27]} 15. c4 {[%emt 0:05:56]} Be4 {[%emt 0:01:42]} 16. d5 {[%emt 0:01:26]} Nf6 {[%emt 0:10:31]} 17. Bd4 {[%emt 0:01:57]} Nf5 {[%emt 0:01:47]} 18. Re1 {[%emt 0:08:17]} O-O {[%emt 0:06:33]} 19. Bxf6 {[%emt 0:01:07]} Qxf6 {[%emt 0:00:02]} 20. Rxe4 {[%emt 0:00:18]} Qxh4 {[%emt 0:02:17]} 21. Rg1 {[%emt 0:03:04]} Nd6 {[%emt 0:03:00]} 22. Re3 {[%emt 0:05:27]} Kh8 {[%emt 0:04:55]} 23. Rxf3 {[%emt 0:00:30]} Rae8 {[%emt 0:02:35]} 24. Rfg3 {[%emt 0:04:33]} Ne4 {[%emt 0:04:43]} 25. Qd4+ {[%emt 0:00:38]} f6 {[%emt 0:00:02]} 26. Rxg4 {[%emt 0:03:53]} Qe1+ {[%emt 0:02:52]} 27. Kc2 {[%emt 0:00:46]} c5 {[%emt 0:01:00]} 28. Qd3 {[%emt 0:01:43]} b5 {[%emt 0:03:15]} 29. Ng6+ {[%emt 0:00:40]} 1-0

[Event "23rd OIBM 2019"]
[Site "Gmund am Tegernsee"]
[Date "2019.10.27"]
[Round "2.32"]
[White "Meins, Gerlef"]
[Black "Tonndorf, Matthias"]
[Result "1-0"]
[ECO "A46"]
[WhiteElo "2415"]
[BlackElo "2171"]
[Annotator "NA"]
[PlyCount "79"]
[EventDate "2019.10.17"]
[EventType "swiss"]
[EventCountry "GER"]
[SourceTitle "playchess.com"]
[Source "ChessBase"]
[SourceQuality "1"]
[TimeControl "40/5400+30:1800+30"]

1. d4 {[%emt 0:02:45]} Nf6 {[%emt 0:00:00]} 2. Nf3 {[%emt 0:00:15]} e6 {[%emt 0:00:05]} 3. g3 {[%emt 0:01:30]} Bb4+ {[%emt 0:06:37]} 4. c3 {[%emt 0:01:35]} Ba5 {[%emt 0:02:42]} 5. Nbd2 {[%emt 0:13:36]} c6 {[%emt 0:03:16]} 6. e4 {[%emt 0:02:33]} d5 {[%emt 0:01:04]} 7. Bd3 {[%emt 0:08:20]} Bc7 {[%emt 0:02:48]} 8. O-O {[%emt 0:01:14]} O-O {[%emt 0:11:52]} 9. Re1 {[%emt 0:17:19]} b6 {[%emt 0:09:41]} 10. e5 {[%emt 0:09:33]} Nfd7 {[%emt 0:00:30]} 11. h4 {[%emt 0:01:38]} g6 {[%emt 0:06:16]} 12. Ng5 {[%emt 0:05:57]} c5 {[%emt 0:06:43]} 13. Ndf3 {[%emt 0:02:13]} Nc6 {[%emt 0:00:38]} 14. h5 {[%emt 0:02:30]} Qe8 {[%emt 0:04:47]} 15. Qd2 {[%emt 0:08:38]} f5 {[%emt 0:13:16]} 16. hxg6 {[%emt 0:05:52]} Qxg6 {[%emt 0:02:34]} 17. Kg2 {[%emt 0:02:48]} Re8 {[%emt 0:00:47]} 18. Rh1 {[%emt 0:00:41]} Nf8 {[%emt 0:00:31]} 19. Nh3 {[%emt 0:02:20]} Bd8 {[%emt 0:01:04]} 20. Nf4 {[%emt 0:00:45]} Qg4 {[%emt 0:00:49]} 21. Bb5 {[%emt 0:03:49]} Bd7 {[%emt 0:00:35]} 22. Bxc6 {[%emt 0:00:21]} Bxc6 {[%emt 0:00:13]} 23. Nh5 {[%emt 0:00:16]} Qg6 {[%emt 0:02:18]} 24. Qh6 {[%emt 0:01:27]} Nd7 {[%emt 0:06:32]} 25. Bg5 {[%emt 0:00:38]} Qxh6 {[%emt 0:01:52]} 26. Bxh6 {[%emt 0:00:03]} b5 {[%emt 0:01:27]} 27. Bg5 {[%emt 0:00:41]} Bb6 {[%emt 0:01:09]} 28. Rh4 {[%emt 0:01:25]} a5 {[%emt 0:00:48]} 29. Rah1 {[%emt 0:00:35]} Ra7 {[%emt 0:00:03]} 30. Nf6+ {[%emt 0:01:17]} Nxf6 {[%emt 0:00:05]} 31. exf6 {[%emt 0:00:11]} Rf8 {[%emt 0:04:38]} 32. Ne5 {[%emt 0:00:08]} Be8 {[%emt 0:00:24]} 33. Rh6 {[%emt 0:02:38]} cxd4 {[%emt 0:06:49]} 34. f7+ {[%emt 0:00:16]} Raxf7 {[%emt 0:01:16]} 35. Nxf7 {[%emt 0:00:18]} Bxf7 {[%emt 0:00:40]} 36. Rxh7 {[%emt 0:00:13]} Bg6 {[%emt 0:00:17]} 37. Rb7 {[%emt 0:00:51]} Bc5 {[%emt 0:01:12]} 38. Bf4 {[%emt 0:00:49]} Rf7 {[%emt 0:01:09]} 39. Rxb5 {[%emt 0:00:24]} Bf8 {[%emt 0:01:17]} 40. cxd4 {[%emt 0:00:37]} 1-0

[Event "23rd OIBM 2019"]
[Site "Gmund am Tegernsee"]
[Date "2019.10.27"]
[Round "2.35"]
[White "Kraich, Klaus"]
[Black "Gschnitzer, Adrian"]
[Result "0-1"]
[ECO "D05"]
[WhiteElo "2183"]
[BlackElo "2412"]
[Annotator "NA"]
[PlyCount "58"]
[EventDate "2019.10.17"]
[EventType "swiss"]
[EventCountry "GER"]
[SourceTitle "playchess.com"]
[Source "ChessBase"]
[SourceQuality "1"]
[TimeControl "40/5400+30:1800+30"]

1. d4 {[%emt 0:00:00]} Nf6 {[%emt 0:00:00]} 2. Nf3 {[%emt 0:00:00]} c5 {[%emt 0:00:33]} 3. e3 {[%emt 0:00:19]} d5 {[%emt 0:00:20]} 4. b3 {[%emt 0:05:39]} e6 {[%emt 0:00:31]} 5. Bd3 {[%emt 0:00:46]} Nc6 {[%emt 0:00:10]} 6. O-O {[%emt 0:00:41]} Bd6 {[%emt 0:00:44]} 7. Bb2 {[%emt 0:01:10]} b6 {[%emt 0:00:10]} 8. Nbd2 {[%emt 0:02:27]} O-O {[%emt 0:02:07]} 9. c4 {[%emt 0:04:12]} Bb7 {[%emt 0:03:46]} 10. Rc1 {[%emt 0:02:48]} cxd4 {[%emt 0:19:36]} 11. exd4 {[%emt 0:09:19]} Rc8 {[%emt 0:04:02]} 12. Qe2 {[%emt 0:03:30]} Ne7 {[%emt 0:03:07]} 13. Ne5 {[%emt 0:04:24]} dxc4 {[%emt 0:01:37]} 14. Ndxc4 {[%emt 0:01:19]} Bb8 {[%emt 0:00:49]} 15. Ne3 {[%emt 0:11:37]} Ned5 {[%emt 0:07:17]} 16. Rxc8 {[%emt 0:06:35]} Qxc8 {[%emt 0:00:14]} 17. Rc1 {[%emt 0:00:58]} Nf4 {[%emt 0:00:48]} 18. Qf1 {[%emt 0:07:37]} Qd8 {[%emt 0:01:57]} 19. Ba6 {[%emt 0:02:08]} Bxa6 {[%emt 0:09:06]} 20. Qxa6 {[%emt 0:00:02]} Ne4 {[%emt 0:00:51]} 21. Nf3 {[%emt 0:08:42]} Bd6 {[%emt 0:00:18]} 22. Rc2 {[%emt 0:04:42]} Qe7 {[%emt 0:07:12]} 23. Kf1 {[%emt 0:00:17]} h5 {[%emt 0:01:59]} 24. Qb5 {[%emt 0:02:35]} Qb7 {[%emt 0:07:05]} 25. Nc4 {[%emt 0:06:19]} Rc8 {[%emt 0:02:43]} 26. Ne1 {[%emt 0:06:19]} Rc6 {[%emt 0:06:47]} 27. Nxd6 {[%emt 0:06:27]} Rxc2 {[%emt 0:00:55]} 28. Qe8+ {[%emt 0:00:58]} Kh7 {[%emt 0:00:12]} 29. Nxc2 {[%emt 0:00:12]} Nxd6 {[%emt 0:00:22]} 0-1

[Event "23rd OIBM 2019"]
[Site "Gmund am Tegernsee"]
[Date "2019.10.27"]
[Round "2.36"]
[White "Klimkowski, Jan"]
[Black "Miller, Eduard"]
[Result "1/2-1/2"]
[ECO "B34"]
[WhiteElo "2174"]
[BlackElo "2402"]
[Annotator "NA"]
[PlyCount "98"]
[EventDate "2019.10.17"]
[EventType "swiss"]
[EventCountry "GER"]
[SourceTitle "playchess.com"]
[Source "ChessBase"]
[SourceQuality "1"]
[TimeControl "40/5400+30:1800+30"]

1. e4 c5 {[%emt 0:04:20]} 2. Nf3 {[%emt 0:00:00]} Nc6 {[%emt 0:00:05]} 3. d4 {[%emt 0:00:00]} cxd4 {[%emt 0:00:05]} 4. Nxd4 {[%emt 0:00:00]} g6 {[%emt 0:00:06]} 5. Nc3 {[%emt 0:00:00]} Bg7 {[%emt 0:00:07]} 6. Be3 {[%emt 0:00:00]} Nf6 {[%emt 0:00:08]} 7. Nxc6 {[%emt 0:00:06]} bxc6 {[%emt 0:03:56]} 8. e5 {[%emt 0:00:24]} Nd5 {[%emt 0:04:35]} 9. Nxd5 {[%emt 0:01:27]} cxd5 {[%emt 0:00:04]} 10. Qxd5 {[%emt 0:01:19]} Rb8 {[%emt 0:00:06]} 11. Bc4 {[%emt 0:01:55]} O-O {[%emt 0:05:50]} 12. O-O {[%emt 0:01:55]} Bb7 {[%emt 0:01:09]} 13. Qd3 {[%emt 0:03:04]} Bxe5 {[%emt 0:04:36]} 14. Bxa7 {[%emt 0:07:08]} Rc8 {[%emt 0:00:22]} 15. Bd4 {[%emt 0:01:31]} Bxd4 {[%emt 0:03:05]} 16. Qxd4 {[%emt 0:00:15]} Qc7 {[%emt 0:00:08]} 17. Bb3 {[%emt 0:03:44]} e5 {[%emt 0:00:38]} 18. Qd2 {[%emt 0:01:23]} Qc6 {[%emt 0:01:05]} 19. f4 {[%emt 0:04:24]} e4 {[%emt 0:01:34]} 20. Qe3 {[%emt 0:06:22]} d5 {[%emt 0:03:07]} 21. Rad1 {[%emt 0:06:26]} Ba6 {[%emt 0:14:52]} 22. Rf2 {[%emt 0:01:11]} Bc4 {[%emt 0:00:08]} 23. f5 {[%emt 0:02:23]} Rfe8 {[%emt 0:04:12]} 24. Bxc4 {[%emt 0:03:10]} Qxc4 {[%emt 0:04:42]} 25. f6 {[%emt 0:07:30]} Qc5 {[%emt 0:02:36]} 26. Qh6 {[%emt 0:01:58]} Qf8 {[%emt 0:00:05]} 27. Qxf8+ {[%emt 0:00:04]} Kxf8 {[%emt 0:00:04]} 28. Rxd5 {[%emt 0:00:16]} Rc6 {[%emt 0:00:07]} 29. g3 {[%emt 0:04:59]} e3 {[%emt 0:01:44]} 30. Re2 {[%emt 0:00:03]} Rxf6 {[%emt 0:00:06]} 31. Rd3 {[%emt 0:00:10]} Rfe6 {[%emt 0:00:39]} 32. Kg2 {[%emt 0:00:35]} g5 {[%emt 0:01:07]} 33. c4 {[%emt 0:02:29]} Re4 {[%emt 0:02:37]} 34. Rc3 {[%emt 0:01:26]} Rd4 {[%emt 0:03:41]} 35. b3 {[%emt 0:05:37]} g4 {[%emt 0:11:05]} 36. a3 {[%emt 0:06:54]} Rd2 {[%emt 0:00:43]} 37. Kf1 {[%emt 0:00:19]} Rd1+ {[%emt 0:00:23]} 38. Re1 {[%emt 0:02:03]} Rd2 {[%emt 0:02:26]} 39. Rcxe3 {[%emt 0:01:22]} Ra8 {[%emt 0:04:01]} 40. b4 {[%emt 0:04:57]} Rxh2 {[%emt 0:00:24]} 41. c5 {[%emt 0:31:19]} Ra6 {[%emt 0:31:42]} 42. R3e2 {[%emt 0:05:43]} Rh3 {[%emt 0:03:30]} 43. b5 {[%emt 0:06:20]} Rxa3 {[%emt 0:14:40]} 44. c6 {[%emt 0:02:02]} Rf3+ {[%emt 0:00:12]} 45. Rf2 {[%emt 0:01:25]} Rc3 {[%emt 0:00:03]} 46. Rg2 {[%emt 0:03:31]} Rc5 {[%emt 0:01:15]} 47. Rb1 {[%emt 0:02:25]} Rh1+ {[%emt 0:00:06]} 48. Rg1 {[%emt 0:00:05]} Rh2 {[%emt 0:00:03]} 49. Rg2 {[%emt 0:00:38]} Rh1+ {[%emt 0:00:08]} 1/2-1/2

[Event "23rd OIBM 2019"]
[Site "Gmund am Tegernsee"]
[Date "2019.10.27"]
[Round "2.37"]
[White "Huber, Benedikt"]
[Black "Soham Das"]
[Result "1-0"]
[ECO "A80"]
[WhiteElo "2167"]
[BlackElo "2376"]
[Annotator "NA"]
[PlyCount "59"]
[EventDate "2019.10.17"]
[EventType "swiss"]
[EventCountry "GER"]
[SourceTitle "playchess.com"]
[Source "ChessBase"]
[SourceQuality "1"]
[TimeControl "40/5400+30:1800+30"]

1. d4 {[%emt 0:00:00]} f5 {[%emt 0:01:22]} 2. Bg5 {[%emt 0:00:14]} g6 {[%emt 0:00:07]} 3. Nc3 {[%emt 0:00:21]} Bg7 {[%emt 0:00:13]} 4. e3 {[%emt 0:00:31]} d6 {[%emt 0:00:55]} 5. Bc4 {[%emt 0:01:32]} c6 {[%emt 0:01:15]} 6. Nge2 {[%emt 0:00:55]} d5 {[%emt 0:14:38]} 7. Bb3 {[%emt 0:01:53]} Qa5 {[%emt 0:10:40]} 8. Qd2 {[%emt 0:07:41]} Nd7 {[%emt 0:16:18]} 9. f3 {[%emt 0:06:05]} h6 {[%emt 0:20:33]} 10. Bh4 {[%emt 0:01:18]} Ngf6 {[%emt 0:03:15]} 11. Bxf6 {[%emt 0:01:30]} Nxf6 {[%emt 0:04:47]} 12. Nf4 {[%emt 0:00:09]} g5 {[%emt 0:00:19]} 13. Nd3 {[%emt 0:00:49]} Nd7 {[%emt 0:03:20]} 14. O-O-O {[%emt 0:04:25]} e5 {[%emt 0:00:10]} 15. h4 {[%emt 0:06:54]} Qd8 {[%emt 0:05:38]} 16. dxe5 {[%emt 0:20:59]} Nxe5 {[%emt 0:00:36]} 17. Nxe5 {[%emt 0:00:35]} Bxe5 {[%emt 0:00:02]} 18. f4 {[%emt 0:00:21]} Bg7 {[%emt 0:03:32]} 19. hxg5 {[%emt 0:02:50]} hxg5 {[%emt 0:00:02]} 20. Rxh8+ {[%emt 0:18:37]} Bxh8 {[%emt 0:00:01]} 21. fxg5 {[%emt 0:02:20]} Be6 {[%emt 0:05:28]} 22. e4 {[%emt 0:05:14]} Bxc3 {[%emt 0:04:50]} 23. bxc3 {[%emt 0:00:23]} fxe4 {[%emt 0:00:03]} 24. Rh1 {[%emt 0:00:29]} Bg8 {[%emt 0:01:27]} 25. Rh8 {[%emt 0:01:02]} Kd7 {[%emt 0:00:12]} 26. c4 {[%emt 0:00:43]} Kc7 {[%emt 0:02:44]} 27. cxd5 {[%emt 0:00:30]} cxd5 {[%emt 0:00:31]} 28. Bxd5 {[%emt 0:01:28]} Qd6 {[%emt 0:00:31]} 29. Qc3+ {[%emt 0:03:22]} Kb6 {[%emt 0:00:24]} 30. Rh6 {[%emt 0:00:34]} 1-0